bitfinex/quotes_BTCUSD_20260310
["timestamp","ask_amount","ask_price","bid_price","bid_amount"]
[1773182462510,0.00022001,69700.0,69692.0,0.00144]
[1773182463083,0.00022001,69700.0,69692.0,0.07318381]
[1773182464879,0.00022001,69693.0,69692.0,0.07318381]
[1773182465126,0.00022001,69693.0,69692.0,0.02661389]
[1773182465363,0.00022001,69700.0,69686.0,0.11431098]
[1773182465364,0.07173696,69700.0,69686.0,0.11431098]
[1773182465555,0.01880642,69699.0,69684.0,0.11431098]
[1773182465718,0.01880642,69699.0,69687.0,0.00144]
[1773182466104,0.07173806,69698.0,69686.0,0.11431098]
[1773182466333,0.0186387,69697.0,69687.0,0.00144]
[1773182468114,0.07174012,69696.0,69687.0,0.11575098]
[1773182469223,0.07174012,69696.0,69689.0,0.11431098]
[1773182469437,0.01769789,69695.0,69689.0,0.11431098]
[1773182470155,0.07174218,69694.0,69689.0,0.11431098]
[1773182471646,0.07174218,69694.0,69684.0,0.12622778]
[1773182471841,0.01707964,69693.0,69681.0,0.00144]
[1773182472021,0.01707964,69693.0,69680.0,0.0002]
[1773182472226,0.07174733,69689.0,69681.0,0.00144]
[1773182472435,0.07174733,69689.0,69680.0,0.0002]
[1773182472604,0.0167749,69688.0,69680.0,0.0002]
[1773182472797,0.07174733,69689.0,69680.0,0.0002]
[1773182473210,0.08993454,69689.0,69680.0,0.0002]
[1773182473935,0.01818721,69688.0,69676.0,0.00706]
[1773182474279,0.01818721,69688.0,69676.0,0.0071723]
[1773182474576,0.07174939,69687.0,69676.0,0.0071723]
[1773182476218,0.07174939,69687.0,69676.0,0.03234619]
[1773182476414,0.07174939,69688.0,69676.0,0.03234619]
[1773182478968,0.01669982,69685.0,69667.0,0.07176986]
[1773182479104,0.07174939,69688.0,69671.0,0.02517389]
[1773182479303,0.00011224,69688.0,69671.0,0.02517389]
[1773182479510,0.00155224,69688.0,69671.0,0.02517389]
[1773182480095,0.01011224,69688.0,69671.0,0.02517389]
[1773182480623,0.07174939,69687.0,69673.0,0.02042288]
[1773182481031,0.07174939,69687.0,69676.0,0.0002]
[1773182481273,0.07174939,69687.0,69677.0,0.02186288]
[1773182484659,0.07174939,69687.0,69676.0,0.0002]
[1773182484660,0.01483541,69686.0,69676.0,0.0002]
[1773182484859,0.01483541,69686.0,69677.0,0.00144]
[1773182485478,0.07174939,69687.0,69677.0,0.00144]
[1773182487043,0.07174939,69687.0,69676.0,0.00164]
[1773182489338,0.01350213,69686.0,69676.0,0.0002]
[1773182490931,0.07174939,69687.0,69676.0,0.0002]
[1773182491328,0.07174939,69687.0,69676.0,0.02062288]
[1773182498221,0.07174939,69687.0,69676.0,0.02206288]
[1773182500566,0.0719694,69687.0,69676.0,0.02206288]
[1773182500904,0.0719694,69687.0,69676.0,0.02307288]
[1773182505454,0.0719694,69687.0,69677.0,0.00144]
[1773182506936,0.0719694,69687.0,69677.0,0.09009739]
[1773182511591,0.18064204,69700.0,69678.0,0.0885139]
[1773182511786,0.08196602,69700.0,69683.0,0.0885139]
[1773182512085,0.08196602,69700.0,69685.0,0.0885139]
[1773182513053,0.08196602,69700.0,69687.0,0.08885434]
[1773182515215,0.08196602,69700.0,69689.0,0.08885434]
[1773182515418,0.08196602,69700.0,69690.0,0.09029434]
[1773182518150,0.08218603,69700.0,69690.0,0.09029434]
[1773182519128,0.1371265,69700.0,69690.0,0.00144]
[1773182519348,0.1371265,69700.0,69684.0,0.08885434]
[1773182519559,0.1371265,69700.0,69688.0,0.00144]
[1773182521258,0.1371265,69700.0,69685.0,0.07175071]
[1773182521468,0.1371265,69700.0,69678.0,0.00011224]
[1773182521469,0.05494047,69695.0,69678.0,0.00011224]
[1773182521675,0.05494047,69691.0,69679.0,0.00144]
[1773182522532,0.00144,69694.0,69678.0,0.00155224]
[1773182522737,0.05494047,69690.0,69678.0,0.00155224]
[1773182523327,0.07174733,69689.0,69678.0,0.00155224]
[1773182523552,0.07174733,69689.0,69678.0,0.00011224]
[1773182523752,0.07174733,69689.0,69678.0,0.00155224]
[1773182524174,0.07174733,69689.0,69678.0,0.00011224]
[1773182528515,0.00144,69688.0,69678.0,0.00011224]
[1773182529268,0.07174939,69687.0,69678.0,0.00011224]
[1773182531679,0.05494047,69686.0,69668.0,0.0002]
[1773182531900,0.05494047,69680.0,69668.0,0.0002]
[1773182532418,0.0001074,69686.0,69670.0,0.00144]
[1773182534008,0.05494047,69680.0,69675.0,0.0002]
[1773182534358,0.05494047,69685.0,69675.0,0.0002]
[1773182534536,0.0001074,69686.0,69675.0,0.0002]
[1773182535958,0.05494047,69685.0,69675.0,0.0002]
[1773182536385,0.07175248,69684.0,69675.0,0.0002]
[1773182536770,0.07175248,69684.0,69670.0,0.00144]
[1773182537119,0.00023,69675.0,69648.0,0.00562]
[1773182537371,0.05494047,69660.0,69649.0,0.08885434]
[1773182537529,0.05638047,69660.0,69648.0,0.00562]
[1773182537751,0.05638047,69660.0,69648.0,0.05004717]
[1773182538255,0.00023,69675.0,69650.0,0.05494047]
[1773182538256,0.00144,69671.0,69650.0,0.05494047]
[1773182538459,0.00023,69675.0,69653.0,0.04442717]
[1773182538618,0.0717669,69673.0,69655.0,0.04442717]
[1773182539974,0.0717669,69673.0,69656.0,0.00144]
[1773182540263,0.0717669,69673.0,69658.0,0.07177926]
[1773182540472,0.0717669,69673.0,69659.0,0.04442717]
[1773182542389,0.0717669,69673.0,69660.0,0.0717772]
[1773182542532,0.0717669,69673.0,69661.0,0.04442717]
[1773182542736,0.0717669,69673.0,69663.0,0.04442717]
[1773182547700,0.07320278,69674.0,69664.0,0.04442717]
[1773182547891,0.07221244,69675.0,69664.0,0.04442717]
[1773182547892,0.0722119,69675.0,69664.0,0.04442717]
[1773182548023,0.00045001,69675.0,69664.0,0.04442717]
[1773182548226,0.00144,69678.0,69664.0,0.04442717]
[1773182548554,0.07175699,69680.0,69665.0,0.07177205]
[1773182548755,0.00144,69679.0,69666.0,0.04442717]
[1773182549136,0.07319699,69680.0,69666.0,0.04442717]
[1773182550057,0.07175699,69680.0,69666.0,0.04442717]
[1773182550669,0.07175699,69680.0,69667.0,0.07176999]
[1773182550986,0.07175699,69680.0,69668.0,0.04586717]
[1773182552161,0.00022001,69678.0,69668.0,0.04586717]
[1773182552796,0.00022001,69678.0,69670.0,0.04442717]
[1773182553406,0.07197867,69678.0,69670.0,0.04442717]
[1773182553641,0.07197867,69678.0,69666.0,0.07177006]
[1773182553642,0.07197867,69678.0,69669.0,0.00144]
[1773182557441,0.00022001,69678.0,69669.0,0.07320789]
[1773182557754,0.00022001,69678.0,69670.0,0.04442717]
[1773182558350,0.00022001,69678.0,69670.0,0.11619361]
[1773182559977,0.07197879,69678.0,69671.0,0.04442717]
[1773182560199,0.07197879,69678.0,69669.0,0.00144]
[1773182561853,0.00022001,69678.0,69668.0,0.07196893]
[1773182562055,0.00022001,69678.0,69669.0,0.04586717]
[1773182563375,0.00022001,69678.0,69670.0,0.04442717]
[1773182565218,0.07197899,69678.0,69669.0,0.00144]
[1773182565462,0.00144,69677.0,69661.0,0.0002]
[1773182565647,0.00144,69677.0,69663.0,0.00144]
[1773182567155,0.00144,69677.0,69664.0,0.04442717]
[1773182567757,0.07176072,69676.0,69664.0,0.04442717]
[1773182568788,0.07176072,69676.0,69664.0,0.04462717]
[1773182572684,0.07176072,69676.0,69664.0,0.0444761]
[1773182577200,0.07176072,69676.0,69664.0,0.0002]
[1773182577510,0.07176072,69676.0,69663.0,0.00144]
[1773182577844,0.07176072,69676.0,69661.0,0.00164]
[1773182579036,0.07176072,69676.0,69662.0,0.07177514]
[1773182579243,0.07176175,69675.0,69666.0,0.04435163]
[1773182579491,0.21436748,69675.0,69666.0,0.04435163]
[1773182579653,0.14260573,69674.0,69666.0,0.04435163]
[1773182580177,0.07176175,69675.0,69666.0,0.04435163]
[1773182580477,0.07176175,69676.0,69666.0,0.04435163]
[1773182580478,0.07176074,69676.0,69666.0,0.04435163]
[1773182581188,0.07175364,69683.0,69668.0,0.04435163]
[1773182581350,0.07175364,69683.0,69670.0,0.04435163]
[1773182581540,0.07175271,69684.0,69670.0,0.04435163]
[1773182581736,0.07216309,69685.0,69670.0,0.04435163]
[1773182581939,0.00022001,69691.0,69671.0,0.04435163]
[1773182583440,0.00022001,69691.0,69673.0,0.04435163]
[1773182583556,0.00022001,69691.0,69675.0,0.04435163]
[1773182584515,0.0001908,69696.0,69674.0,0.00144]
[1773182584516,0.07317432,69702.0,69681.0,0.04435163]
[1773182584681,0.01034231,69700.0,69683.0,0.04435163]
[1773182584883,0.00022001,69698.0,69683.0,0.04435163]
[1773182585757,0.00022001,69698.0,69685.0,0.04435163]
[1773182585918,0.01034231,69700.0,69685.0,0.04435163]
[1773182587770,0.01034231,69700.0,69687.0,0.04435163]
[1773182587979,0.01034231,69700.0,69689.0,0.04435163]
[1773182589238,0.00562,69704.0,69691.0,0.04435163]
[1773182589440,0.0001908,69707.0,69691.0,0.04435163]
[1773182589644,0.0001908,69707.0,69691.0,0.04441604]
[1773182589844,0.07172397,69712.0,69693.0,0.04435163]
[1773182589845,0.07316397,69712.0,69693.0,0.04435163]
[1773182590046,0.00144,69712.0,69695.0,0.04435163]
[1773182590277,0.07172277,69713.0,69695.0,0.04435163]
[1773182590489,0.00144,69713.0,69701.0,0.04435163]
[1773182590697,0.07190933,69717.0,69701.0,0.04579163]
[1773182590901,0.07190944,69717.0,69701.0,0.04579163]
[1773182591469,0.00022001,69712.0,69701.0,0.04579163]
[1773182591906,0.00022001,69712.0,69703.0,0.04435163]
[1773182594416,0.07337712,69719.0,69703.0,0.04435163]
[1773182594417,0.00022001,69719.0,69705.0,0.04435163]
[1773182594622,0.07193668,69719.0,69705.0,0.04435163]
[1773182594826,0.07193668,69719.0,69701.0,0.07317477]
[1773182595048,0.00144,69718.0,69701.0,0.07173477]
[1773182595253,0.00144,69718.0,69702.0,0.00144]
[1773182595659,0.00144,69718.0,69700.0,0.0717358]
[1773182596009,0.00144,69718.0,69703.0,0.00144]
[1773182596641,0.07171851,69717.0,69700.0,0.11608743]
[1773182596846,0.07171851,69717.0,69701.0,0.00144]
[1773182597250,0.07171851,69717.0,69702.0,0.00144]
[1773182597658,0.07171851,69717.0,69700.0,0.11608743]
[1773182597884,0.07171851,69717.0,69701.0,0.04579163]
[1773182598320,0.07171851,69717.0,69702.0,0.00144]
[1773182598691,0.07171851,69717.0,69701.0,0.11608576]
[1773182598890,0.07171851,69717.0,69703.0,0.00144]
[1773182599346,0.07193852,69717.0,69703.0,0.00144]
[1773182599734,0.07193852,69717.0,69702.0,0.04435163]
[1773182599913,0.07193852,69717.0,69703.0,0.00144]
[1773182600777,0.07193852,69717.0,69702.0,0.11608507]
[1773182600982,0.07193852,69717.0,69703.0,0.00144]
[1773182601868,0.07193852,69717.0,69703.0,0.04579163]
[1773182603267,0.07193852,69717.0,69703.0,0.04435163]
[1773182603438,0.07193852,69717.0,69703.0,0.04579163]
[1773182604314,0.07193852,69717.0,69703.0,0.04435163]
[1773182604470,0.07193852,69717.0,69703.0,0.04579163]
[1773182604676,0.07193852,69717.0,69703.0,0.00144]
[1773182605265,0.05495869,69713.0,69697.0,0.04579163]
[1773182605387,0.07193852,69717.0,69697.0,0.04579163]
[1773182605795,0.07193852,69717.0,69699.0,0.04435163]
[1773182606630,0.07193852,69717.0,69699.0,0.04420056]
[1773182607508,0.07193852,69717.0,69700.0,0.0442761]
[1773182607921,0.07293852,69717.0,69700.0,0.0442761]
[1773182608125,0.07193852,69717.0,69700.0,0.0442761]
[1773182608541,0.07293852,69717.0,69700.0,0.0442761]
[1773182608706,0.07193852,69717.0,69700.0,0.0442761]
[1773182608906,0.07293852,69717.0,69700.0,0.0442761]
[1773182609329,0.07193852,69717.0,69700.0,0.0442761]
[1773182609526,0.07293852,69717.0,69700.0,0.0442761]
[1773182611601,0.05495869,69710.0,69697.0,0.0002]
[1773182611806,0.05495869,69710.0,69697.0,0.00164]
[1773182612156,0.05495869,69710.0,69690.0,0.07194626]
[1773182612450,0.00144,69711.0,69692.0,0.0457161]
[1773182613789,0.07172674,69709.0,69692.0,0.07318362]
[1773182613980,0.07172674,69709.0,69693.0,0.0442761]
[1773182617209,0.07172674,69709.0,69694.0,0.00144]
[1773182617410,0.07272674,69709.0,69694.0,0.00144]
[1773182617991,0.07172674,69709.0,69694.0,0.00144]
[1773182618600,0.07272674,69709.0,69694.0,0.00144]
[1773182619025,0.07372674,69709.0,69694.0,0.00144]
[1773182619234,0.07272674,69709.0,69694.0,0.00144]
[1773182620012,0.07272674,69709.0,69693.0,0.0457161]
[1773182620191,0.07172674,69709.0,69693.0,0.0457161]
[1773182620425,0.21549507,69709.0,69693.0,0.0457161]
[1773182620799,0.07172674,69709.0,69693.0,0.0457161]
[1773182620955,0.21549517,69709.0,69693.0,0.0457161]
[1773182621340,0.21449517,69709.0,69693.0,0.0457161]
[1773182621575,0.21549517,69709.0,69693.0,0.0457161]
[1773182621778,0.21449517,69709.0,69693.0,0.0457161]
[1773182622162,0.21549517,69709.0,69693.0,0.0457161]
[1773182622362,0.07272674,69709.0,69693.0,0.0457161]
[1773182623358,0.07172674,69709.0,69693.0,0.0457161]
[1773182623699,0.2154711,69709.0,69693.0,0.0457161]
[1773182623873,0.07172674,69709.0,69693.0,0.0457161]
[1773182624077,0.07172674,69709.0,69693.0,0.11745923]
[1773182624261,0.21547111,69709.0,69693.0,0.0457161]
[1773182624471,0.21447111,69709.0,69693.0,0.0457161]
[1773182625015,0.21547111,69709.0,69693.0,0.0457161]
[1773182625169,0.21447111,69709.0,69693.0,0.0457161]
[1773182625919,0.07172674,69709.0,69693.0,0.0457161]
[1773182626465,0.07272674,69709.0,69693.0,0.0457161]
[1773182626703,0.07172674,69709.0,69693.0,0.0457161]
[1773182627073,0.07272674,69709.0,69693.0,0.0457161]
[1773182627279,0.07172674,69709.0,69693.0,0.0457161]
[1773182627701,0.07272674,69709.0,69693.0,0.0457161]
[1773182627878,0.07272674,69709.0,69694.0,0.0442761]
[1773182627879,0.07172674,69709.0,69694.0,0.0442761]
[1773182628224,0.07272674,69709.0,69694.0,0.0442761]
[1773182629951,0.07172674,69709.0,69694.0,0.0442761]
[1773182630148,0.07272674,69709.0,69694.0,0.0442761]
[1773182630556,0.07172674,69709.0,69694.0,0.0442761]
[1773182630910,0.07272674,69709.0,69694.0,0.0442761]
[1773182631088,0.07172674,69709.0,69694.0,0.0442761]
[1773182631316,0.07272674,69709.0,69694.0,0.0442761]
[1773182631879,0.07172674,69709.0,69694.0,0.0442761]
[1773182632249,0.07272674,69709.0,69694.0,0.0442761]
[1773182632847,0.07172674,69709.0,69694.0,0.0442761]
[1773182633522,0.07272674,69709.0,69694.0,0.0442761]
[1773182633708,0.07172674,69709.0,69694.0,0.0442761]
[1773182634005,0.07272674,69709.0,69694.0,0.0442761]
[1773182634356,0.07172674,69709.0,69694.0,0.0442761]
[1773182634554,0.07272674,69709.0,69694.0,0.0442761]
[1773182634774,0.07172674,69709.0,69694.0,0.0442761]
[1773182635191,0.07272674,69709.0,69694.0,0.0442761]
[1773182635770,0.07272674,69709.0,69696.0,0.0442761]
[1773182635771,0.07272707,69709.0,69696.0,0.0442761]
[1773182636693,0.07172707,69709.0,69696.0,0.0442761]
[1773182636899,0.07194675,69711.0,69698.0,0.0442761]
[1773182637369,0.07172674,69710.0,69698.0,0.0442761]
[1773182638310,0.07172674,69710.0,69699.0,0.00144]
[1773182638600,0.07172674,69710.0,69700.0,0.0442761]
[1773182640002,0.00022001,69709.0,69700.0,0.0442761]
[1773182640228,3.871e-05,69709.0,69700.0,0.0442761]
[1773182640775,3.871e-05,69709.0,69690.0,0.00144]
[1773182641153,0.0549099,69700.0,69686.0,0.0442761]
[1773182641429,0.00144,69699.0,69686.0,0.0442761]
[1773182642823,0.07173806,69698.0,69686.0,0.0442761]
[1773182643819,0.07173806,69698.0,69683.0,0.0002]
[1773182644018,0.0549099,69693.0,69677.0,0.00144]
[1773182644268,0.0549099,69690.0,69677.0,0.00144]
[1773182644627,0.00144,69692.0,69679.0,0.0442761]
[1773182644825,0.07174012,69696.0,69679.0,0.07175745]
[1773182645032,0.00144,69695.0,69680.0,0.0442761]
[1773182645293,0.001,69693.0,69680.0,0.0549099]
[1773182645451,0.00144,69696.0,69681.0,0.0442761]
[1773182645626,0.00144,69696.0,69683.0,0.0442761]
[1773182646151,0.001,69693.0,69683.0,0.0442761]
[1773182646490,0.07173875,69698.0,69684.0,0.00144]
[1773182646670,0.07173875,69698.0,69685.0,0.0442761]
[1773182647034,0.07173875,69698.0,69686.0,0.0442761]
[1773182650334,0.07155743,69698.0,69686.0,0.0442761]
[1773182651216,0.07155743,69698.0,69685.0,0.0002]
[1773182652721,0.07255743,69698.0,69685.0,0.0002]
[1773182652953,0.07155743,69698.0,69685.0,0.0002]
[1773182653164,0.07255743,69698.0,69685.0,0.0002]
[1773182653396,0.07355743,69698.0,69685.0,0.0002]
[1773182653761,0.07255743,69698.0,69685.0,0.0002]
[1773182654743,0.07355743,69698.0,69685.0,0.0002]
[1773182654956,0.07255743,69698.0,69685.0,0.0002]
[1773182655256,0.07355743,69698.0,69685.0,0.0002]
[1773182655614,0.07377744,69698.0,69685.0,0.0002]
[1773182656369,0.07341481,69698.0,69685.0,0.0002]
[1773182657831,0.07241481,69698.0,69685.0,0.0002]
[1773182658163,0.07141481,69698.0,69685.0,0.0002]
[1773182658410,0.07241481,69698.0,69685.0,0.0002]
[1773182661905,0.07241481,69698.0,69686.0,0.0442761]
[1773182662832,0.07141481,69698.0,69686.0,0.0442761]
[1773182663053,0.07223349,69698.0,69686.0,0.0442761]
[1773182664202,0.07123349,69698.0,69686.0,0.0442761]
[1773182664405,0.00144,69697.0,69686.0,0.0442761]
[1773182665337,0.07267349,69698.0,69686.0,0.0442761]
[1773182670326,0.07267349,69698.0,69685.0,0.0002]
[1773182671488,0.07367349,69698.0,69685.0,0.0002]
[1773182671685,0.07267349,69698.0,69685.0,0.0002]
[1773182672036,0.07367349,69698.0,69685.0,0.0002]
[1773182672238,0.2156946,69698.0,69685.0,0.0002]
[1773182672662,0.2176946,69698.0,69685.0,0.0002]
[1773182673066,0.2166946,69698.0,69685.0,0.0002]
[1773182673283,0.07174012,69696.0,69685.0,0.0444761]
[1773182675184,0.07274012,69696.0,69685.0,0.0444761]
[1773182675524,0.07174012,69696.0,69685.0,0.0444761]
[1773182675722,0.05493266,69695.0,69673.0,0.0002112]
[1773182676065,0.05493266,69695.0,69664.0,0.19627846]
[1773182676066,0.05493266,69685.0,69669.0,0.11624383]
[1773182676224,0.05493266,69681.0,69669.0,0.11624383]
[1773182676425,0.05493266,69681.0,69671.0,0.0444761]
[1773182676864,0.05493266,69681.0,69671.0,0.0002]
[1773182677375,0.1266887,69681.0,69671.0,0.0002]
[1773182677527,0.1266887,69681.0,69671.0,0.0444761]
[1773182677858,0.2696382,69681.0,69671.0,0.0360781]
[1773182678058,0.1429495,69680.0,69678.0,0.0002]
[1773182678264,0.21470554,69681.0,69678.0,0.0002]
[1773182678428,0.1429495,69680.0,69678.0,0.0002]
[1773182678640,0.1429495,69680.0,69671.0,0.0360781]
[1773182678828,0.07175604,69681.0,69671.0,0.0360781]
[1773182679030,0.00144,69679.0,69671.0,0.0360781]
[1773182679744,0.07319767,69679.0,69671.0,0.0360781]
[1773182680349,0.07319767,69679.0,69669.0,0.0002]
[1773182681931,0.10025785,69679.0,69669.0,0.0002]
[1773182682530,0.07319767,69679.0,69669.0,0.0002]
[1773182682894,0.07419767,69679.0,69669.0,0.0002]
[1773182683490,0.07319767,69679.0,69669.0,0.0002]
[1773182683934,0.02716525,69678.0,69665.0,0.0001486]
[1773182684099,0.07319767,69679.0,69665.0,0.03418332]
[1773182684304,0.07319767,69679.0,69669.0,0.0002]
[1773182684715,0.07419767,69679.0,69669.0,0.0002]
[1773182685123,0.00144,69678.0,69669.0,0.0002]
[1773182686007,0.07175969,69677.0,69669.0,0.0002]
[1773182688073,0.07175969,69677.0,69662.0,0.0002]
[1773182688240,0.02757044,69671.0,69650.0,0.07221712]
[1773182688416,0.05493266,69667.0,69657.0,0.00046092]
[1773182688641,0.00144,69666.0,69657.0,0.00046092]
[1773182690028,0.07177205,69665.0,69650.0,0.03481061]
[1773182690254,0.02774562,69664.0,69650.0,0.03625061]
[1773182690625,0.02774562,69664.0,69650.0,0.03481061]
[1773182691145,0.02774562,69664.0,69657.0,0.0002]
[1773182691749,0.02874562,69664.0,69657.0,0.0005394]
[1773182692292,0.07159276,69663.0,69657.0,0.0005394]
[1773182695485,0.07159276,69663.0,69646.0,0.00144]
[1773182695486,0.05493266,69660.0,69646.0,0.00144]
[1773182695684,0.05493266,69660.0,69647.0,0.03336105]
[1773182696137,0.05637266,69660.0,69647.0,0.03336105]
[1773182696592,0.05637266,69660.0,69620.0,0.00562]
[1773182696593,0.02799979,69656.0,69620.0,0.00562]
[1773182696791,0.02799979,69656.0,69626.0,0.03336105]
[1773182696792,0.05493266,69639.0,69626.0,0.03336105]
[1773182696927,0.11364823,69658.0,69625.0,0.08104992]
[1773182696928,0.05493266,69650.0,69625.0,0.08104992]
[1773182697129,0.05493266,69640.0,69626.0,0.03480105]
[1773182697329,0.05493266,69640.0,69626.0,0.03336105]
[1773182697912,0.05493266,69640.0,69627.0,0.03336105]
[1773182698111,0.05637266,69640.0,69633.0,0.0002]
[1773182698361,0.00144,69640.0,69633.0,0.0002]
[1773182698683,0.00144,69640.0,69627.0,0.03336105]
[1773182699357,0.05637266,69640.0,69627.0,0.03336105]
[1773182699719,0.05619127,69640.0,69627.0,0.03336105]
[1773182699921,0.05700987,69640.0,69627.0,0.03336105]
[1773182700131,0.05600987,69640.0,69627.0,0.03336105]
[1773182700518,0.07179884,69639.0,69627.0,0.03336105]
[1773182701444,0.0350085,69645.0,69627.0,0.03336105]
[1773182701445,0.07178441,69653.0,69631.0,0.0843989]
[1773182701648,0.07178441,69653.0,69632.0,0.03336105]
[1773182702253,0.001,69639.0,69634.0,0.03336105]
[1773182702574,0.07178441,69653.0,69636.0,0.03336105]
[1773182704530,0.07178441,69653.0,69638.0,0.03336105]
[1773182704756,0.07178441,69653.0,69640.0,0.03336105]
[1773182705586,0.0717356,69653.0,69640.0,0.03336105]
[1773182706618,0.07201961,69654.0,69641.0,0.07179678]
[1773182706794,0.07201874,69654.0,69642.0,0.03336105]
[1773182706996,0.07183735,69654.0,69642.0,0.03336105]
[1773182708704,5.381e-05,69654.0,69644.0,0.03336105]
[1773182709848,5.381e-05,69654.0,69645.0,0.00144]
[1773182710052,5.381e-05,69654.0,69646.0,0.03336105]
[1773182712358,0.00027382,69654.0,69646.0,0.03336105]
[1773182713783,0.07178441,69653.0,69646.0,0.03336105]
[1773182714214,0.07205756,69654.0,69646.0,0.10515208]
[1773182714900,0.07205756,69654.0,69647.0,0.03336105]
[1773182716002,0.07205756,69654.0,69647.0,0.03373568]
[1773182717394,0.07205756,69654.0,69647.0,0.1055261]
[1773182718325,0.07205756,69654.0,69647.0,0.03373568]
[1773182719304,0.07205756,69654.0,69647.0,0.10552623]
[1773182719750,0.07205756,69654.0,69647.0,0.03373568]
[1773182725537,0.07205756,69654.0,69647.0,0.10572566]
[1773182726717,0.00022001,69654.0,69647.0,0.07236461]
[1773182726892,0.07199662,69661.0,69648.0,0.03814334]
[1773182727263,0.00022001,69661.0,69648.0,0.03814334]
[1773182727708,0.00022001,69661.0,69647.0,0.07236461]
[1773182727709,0.00166001,69666.0,69651.0,0.03814334]
[1773182728036,0.00022001,69666.0,69653.0,0.03814334]
[1773182728962,0.00022001,69666.0,69655.0,0.03814334]
[1773182730919,0.00022001,69666.0,69657.0,0.03814334]
[1773182731150,0.0002776,69670.0,69659.0,0.03814334]
[1773182731501,0.00022001,69673.0,69661.0,0.03814334]
[1773182732454,0.00022001,69666.0,69661.0,0.03814334]
[1773182733081,0.00022001,69666.0,69663.0,0.03814334]
[1773182733431,0.00022001,69666.0,69665.0,0.03814334]
[1773182735105,0.00022001,69666.0,69665.0,0.10991539]
[1773182738885,0.00022001,69666.0,69665.0,0.11011539]
[1773182739678,0.00022001,69666.0,69665.0,0.0002]
[1773182739856,0.07199124,69666.0,69658.0,0.0002]
[1773182740058,0.07199124,69666.0,69640.0,0.0002]
[1773182740059,0.03753607,69660.0,69643.0,0.00144]
[1773182740233,0.05495599,69650.0,69642.0,0.00144]
[1773182740438,0.05495599,69650.0,69640.0,0.00144]
[1773182740439,0.09249206,69650.0,69640.0,0.00144]
[1773182740782,0.03753607,69650.0,69640.0,0.00144]
[1773182741136,0.03753607,69650.0,69640.0,0.07323766]
[1773182741137,0.16428023,69650.0,69640.0,0.07323766]
[1773182741935,0.10932424,69650.0,69640.0,0.07323766]
[1773182743182,0.03753607,69647.0,69631.0,0.0002776]
[1773182743381,0.03753607,69639.0,69625.0,0.00174691]
[1773182743533,0.03753607,69637.0,69625.0,0.00174691]
[1773182744534,0.03753607,69634.0,69625.0,0.00185932]
[1773182744754,0.03753607,69634.0,69622.0,0.0002]
[1773182744957,0.03753607,69634.0,69622.0,0.07201628]
[1773182745164,0.03753607,69632.0,69622.0,0.0002]
[1773182746280,0.07180638,69632.0,69622.0,0.0002]
[1773182746514,0.03753607,69631.0,69622.0,0.0002]
[1773182746790,0.03753607,69628.0,69609.0,0.07182949]
[1773182747701,0.03753607,69628.0,69608.0,0.0720306]
[1773182747932,0.03753607,69628.0,69608.0,0.0002]
[1773182748133,0.04114083,69622.0,69608.0,0.0002]
[1773182748304,0.04114083,69620.0,69608.0,0.00031243]
[1773182749069,0.07325741,69621.0,69608.0,0.00031243]
[1773182749217,0.11439824,69621.0,69608.0,0.00031243]
[1773182749632,0.11439824,69621.0,69607.0,0.07019361]
[1773182749853,0.1145104,69621.0,69607.0,0.07019361]
[1773182750028,0.1145104,69621.0,69606.0,0.07183287]
[1773182750230,0.04109979,69620.0,69606.0,0.07183287]
[1773182751377,0.07181947,69619.0,69606.0,0.07183287]
[1773182752547,0.07181947,69620.0,69607.0,0.04001051]
[1773182753201,0.07181947,69620.0,69608.0,0.0002]
[1773182759381,0.04109979,69619.0,69608.0,0.0002]
[1773182761022,0.07203948,69620.0,69608.0,0.0002]
[1773182762001,0.07203948,69620.0,69607.0,0.10242195]
[1773182762619,0.04109979,69619.0,69607.0,0.07183146]
[1773182762844,0.04109979,69619.0,69593.0,0.04001051]
[1773182763016,0.04109979,69619.0,69595.0,0.00144]
[1773182763190,0.04109979,69617.0,69595.0,0.00144]
[1773182763407,0.04109979,69617.0,69592.0,0.07746713]
[1773182763749,0.04109979,69617.0,69595.0,0.00144]
[1773182764010,0.04109979,69617.0,69592.0,0.00562]
[1773182764215,0.04109979,69615.0,69592.0,0.00562]
[1773182764633,0.07182256,69616.0,69593.0,0.04001051]
[1773182764836,0.07282199,69617.0,69593.0,0.04001051]
[1773182764986,0.00144,69615.0,69593.0,0.04001051]
[1773182765769,0.04253979,69615.0,69593.0,0.04001051]
[1773182766128,0.07182463,69614.0,69595.0,0.04001051]
[1773182766320,0.04109979,69613.0,69596.0,0.00144]
[1773182767104,0.04109979,69613.0,69596.0,0.04145051]
[1773182767502,0.00144,69615.0,69596.0,0.04145051]
[1773182768310,0.00144,69615.0,69597.0,0.07184217]
[1773182768512,0.00022001,69620.0,69601.0,0.09921516]
[1773182768696,0.00022001,69620.0,69602.0,0.04001051]
[1773182768896,0.00022001,69620.0,69604.0,0.04001051]
[1773182769682,0.0720387,69620.0,69604.0,0.04001051]
[1773182771336,0.00022001,69620.0,69606.0,0.04001051]
[1773182771950,0.07203888,69620.0,69606.0,0.04001051]
[1773182773362,0.00011216,69621.0,69608.0,0.04001051]
[1773182773567,0.00144,69626.0,69611.0,0.04001051]
[1773182773736,0.00144,69626.0,69611.0,0.04012267]
[1773182774113,0.00022001,69620.0,69611.0,0.04012267]
[1773182775234,0.00022001,69620.0,69612.0,0.07182669]
[1773182775473,0.00022001,69620.0,69613.0,0.04001051]
[1773182776299,0.00144,69636.0,69613.0,0.04001051]
[1773182776588,0.0718031,69635.0,69621.0,0.04001051]
[1773182776704,0.00144,69636.0,69621.0,0.04145051]
[1773182777358,0.00144,69636.0,69622.0,0.11182688]
[1773182777738,0.07180116,69637.0,69622.0,0.11182688]
[1773182777965,0.07324116,69637.0,69622.0,0.11182688]
[1773182778712,0.07180116,69637.0,69622.0,0.11182688]
[1773182779099,0.07324116,69637.0,69622.0,0.11282688]
[1773182779315,0.07180201,69636.0,69622.0,0.11282688]
[1773182779484,0.0718033,69635.0,69622.0,0.11282688]
[1773182779930,0.0718033,69635.0,69622.0,0.07281637]
[1773182780122,0.11547294,69635.0,69622.0,0.07281637]
[1773182780586,0.07180201,69636.0,69622.0,0.07281637]
[1773182780758,0.07210102,69638.0,69623.0,0.04508866]
[1773182781568,0.07210102,69638.0,69624.0,0.11690297]
[1773182781769,0.0003011,69638.0,69624.0,0.11690297]
[1773182781933,0.0003011,69638.0,69625.0,0.04508866]
[1773182783174,0.0003011,69638.0,69625.0,0.04608866]
[1773182783378,0.04366964,69643.0,69628.0,0.05504423]
[1773182783591,0.04366964,69643.0,69629.0,0.04652866]
[1773182784519,0.00584001,69648.0,69629.0,0.04652866]
[1773182784660,0.00584001,69648.0,69632.0,0.04508866]
[1773182785003,0.00584001,69648.0,69633.0,0.00144]
[1773182785004,0.04366964,69646.0,69633.0,0.00144]
[1773182785207,0.04366964,69646.0,69634.0,0.00144]